bitfinex/quotes_BTCUSD_20241205
["timestamp","ask_amount","ask_price","bid_price","bid_amount"]
[1733436718541,0.63244634,98711.0,98710.0,5e-07]
[1733436718775,0.65544634,98711.0,98710.0,5e-07]
[1733436719169,0.00058727,98721.0,98718.0,0.202597]
[1733436719415,0.03812017,98754.0,98720.0,0.248593]
[1733436719576,0.09999909,98764.0,98722.0,0.26446883]
[1733436719793,0.03812017,98764.0,98739.0,0.202554]
[1733436720001,0.0017322,98770.0,98740.0,0.1243]
[1733436720212,0.03812017,98768.0,98741.0,0.1006885]
[1733436720451,0.0017322,98770.0,98755.0,0.202521]
[1733436720683,0.0017322,98770.0,98757.0,0.202517]
[1733436720910,0.0017322,98770.0,98758.0,0.00101244]
[1733436721146,0.0017322,98770.0,98760.0,0.202511]
[1733436721350,0.0017322,98770.0,98761.0,0.04161613]
[1733436721555,0.0017322,98770.0,98761.0,0.00101239]
[1733436721786,0.0017322,98770.0,98752.0,0.202527]
[1733436721787,0.0017322,98770.0,98753.0,0.00101242]
[1733436721988,0.0017322,98770.0,98761.0,0.202507]
[1733436722218,0.01090842,98770.0,98762.0,0.00101237]
[1733436722423,0.00190842,98770.0,98763.0,0.20351637]
[1733436722593,0.00190842,98770.0,98764.0,0.04060234]
[1733436722797,0.00490842,98770.0,98764.0,0.04161471]
[1733436723181,0.00190842,98770.0,98764.0,0.04060234]
[1733436723390,0.00190842,98770.0,98761.0,0.202507]
[1733436723627,0.01090842,98770.0,98761.0,0.202507]
[1733436724034,0.15,98768.0,98754.0,0.405046]
[1733436724246,0.15,98768.0,98756.0,0.202519]
[1733436724440,0.15,98768.0,98761.0,0.202508]
[1733436725138,0.00490842,98770.0,98761.0,0.202508]
[1733436725569,0.008,98768.0,98761.0,0.202508]
[1733436725774,0.158,98768.0,98756.0,0.24412444]
[1733436726001,0.16,98768.0,98756.0,0.203519]
[1733436726646,0.152,98768.0,98756.0,0.202519]
[1733436726841,0.15,98768.0,98756.0,0.202519]
[1733436727171,0.158,98768.0,98756.0,0.202519]
[1733436727374,0.00190842,98770.0,98756.0,0.202519]
[1733436727582,0.00190842,98770.0,98757.0,0.00101239]
[1733436727814,0.00190842,98770.0,98758.0,0.202515]
[1733436727815,0.15,98769.0,98758.0,0.202515]
[1733436728212,0.011,98768.0,98758.0,0.202515]
[1733436728435,0.003,98768.0,98758.0,0.202515]
[1733436729289,0.003,98768.0,98756.0,0.24166174]
[1733436729496,0.15,98766.0,98757.0,0.00101241]
[1733436729790,0.2025,98765.0,98754.0,0.00101242]
[1733436730173,0.2025,98765.0,98754.0,0.20353442]
[1733436730387,0.15,98766.0,98754.0,0.20353442]
[1733436730595,0.003,98769.0,98754.0,0.20353442]
[1733436730807,0.007,98766.0,98754.0,0.20353442]
[1733436731019,0.003,98769.0,98754.0,0.20353442]
[1733436731450,0.007,98765.0,98754.0,0.20353442]
[1733436731664,0.003,98769.0,98754.0,0.20353442]
[1733436731884,0.15190842,98770.0,98754.0,0.20353442]
[1733436732097,0.007,98766.0,98754.0,0.20353442]
[1733436732326,0.002,98765.0,98754.0,0.20353442]
[1733436732540,0.202502,98764.0,98754.0,0.00101242]
[1733436732754,0.202502,98764.0,98755.0,0.00101243]
[1733436733627,0.157,98766.0,98755.0,0.00101243]
[1733436733837,0.2025,98765.0,98756.0,0.00101242]
[1733436734051,0.202501,98765.0,98757.0,0.00101243]
[1733436734264,0.202501,98765.0,98747.0,0.405072]
[1733436734265,0.202501,98765.0,98751.0,0.202528]
[1733436734467,0.208501,98765.0,98752.0,0.00101243]
[1733436734676,0.202502,98764.0,98753.0,0.202525]
[1733436734890,0.202502,98764.0,98754.0,0.00101243]
[1733436735293,0.204502,98764.0,98754.0,0.00101243]
[1733436735737,0.202502,98764.0,98754.0,0.00101243]
[1733436736173,0.204502,98764.0,98754.0,0.00101243]
[1733436737201,0.202511,98761.0,98754.0,0.00101243]
[1733436737439,0.204502,98764.0,98755.0,0.00101245]
[1733436738259,0.210502,98764.0,98755.0,0.00101245]
[1733436738480,0.208502,98764.0,98752.0,0.00101243]
[1733436738730,0.202504,98763.0,98752.0,0.20353943]
[1733436738951,0.001,98761.0,98752.0,0.20353943]
[1733436739382,0.202504,98763.0,98752.0,0.20353943]
[1733436739839,0.008,98764.0,98752.0,0.20353943]
[1733436740045,0.202504,98763.0,98752.0,0.20353943]
[1733436740912,0.207504,98763.0,98752.0,0.20353943]
[1733436742344,0.005,98763.0,98757.0,0.202515]
[1733436742775,0.005,98763.0,98753.0,0.202525]
[1733436742776,0.001,98761.0,98753.0,0.202525]
[1733436742990,0.001,98761.0,98754.0,0.05148593]
[1733436743190,0.002243,98763.0,98754.0,0.05148593]
[1733436743421,0.004243,98763.0,98754.0,0.05148593]
[1733436743635,0.002,98763.0,98755.0,0.202521]
[1733436743868,0.002,98763.0,98754.0,0.05148593]
[1733436743869,0.007,98763.0,98754.0,0.05047351]
[1733436744082,0.007,98763.0,98755.0,0.05552056]
[1733436744083,0.005,98763.0,98755.0,0.05552056]
[1733436744318,0.001,98761.0,98755.0,0.05653299]
[1733436744966,0.202511,98760.0,98755.0,0.05552056]
[1733436745598,0.202511,98760.0,98756.0,0.01551966]
[1733436746361,0.202501,98765.0,98756.0,0.01551966]
[1733436746764,0.001,98760.0,98756.0,0.01551966]
[1733436747251,0.202501,98765.0,98756.0,0.01551966]
[1733436747383,0.004,98760.0,98756.0,0.01551966]
[1733436748006,0.204501,98765.0,98756.0,0.01551966]
[1733436748230,0.204501,98765.0,98740.0,0.0008662]
[1733436748231,0.20254,98746.0,98740.0,0.0008662]
[1733436748387,0.46567017,98741.0,98740.0,0.0008662]
[1733436748610,0.56534622,98741.0,98740.0,0.0008662]
[1733436749033,0.63584622,98741.0,98740.0,0.0008662]
[1733436749457,0.63584622,98741.0,98740.0,2e-07]
[1733436749458,5.15784622,98741.0,98740.0,2e-07]
[1733436749658,0.73376544,98741.0,98740.0,2e-07]
[1733436750189,0.73876544,98741.0,98740.0,2e-07]
[1733436750354,0.76974177,98741.0,98740.0,2e-07]
[1733436750553,4.695,98740.0,98680.0,0.00101305]
[1733436750780,0.352611,98711.0,98681.0,0.202671]
[1733436750951,0.352611,98711.0,98682.0,0.00101305]
[1733436751793,0.35268825,98711.0,98682.0,0.00101305]
[1733436752143,0.35268825,98711.0,98686.0,0.202661]
[1733436752332,0.35268825,98711.0,98687.0,0.00101303]
[1733436752537,0.35268825,98711.0,98679.0,0.09570713]
[1733436752538,0.35268825,98711.0,98688.0,0.00101303]
[1733436753612,0.35568825,98711.0,98689.0,0.00101303]
[1733436753815,0.36368825,98711.0,98689.0,0.00101303]
[1733436754394,0.36368825,98711.0,98682.0,0.20267]
[1733436754395,0.50148447,98711.0,98664.0,0.06187983]
[1733436754610,0.59215382,98711.0,98667.0,0.0796]
[1733436754867,0.59215382,98711.0,98668.0,0.00101318]
[1733436755555,0.49848447,98711.0,98670.0,0.202694]
[1733436755744,0.50648447,98711.0,98671.0,0.00101318]
[1733436755939,0.49848447,98711.0,98674.0,0.202687]
[1733436756148,0.49848447,98711.0,98679.0,0.202676]
[1733436756348,0.49848447,98711.0,98680.0,0.00101312]
[1733436756349,0.50748447,98711.0,98680.0,0.00101312]
[1733436756547,0.50748447,98711.0,98681.0,0.0010131]
[1733436756796,0.50748447,98711.0,98682.0,0.0010131]
[1733436757778,0.50748447,98711.0,98683.0,0.0010131]
[1733436758802,0.50748447,98711.0,98684.0,0.0010131]
[1733436759852,0.50748447,98711.0,98685.0,0.0010131]
[1733436760055,0.50748447,98711.0,98676.0,0.0010131]
[1733436761027,0.50748447,98711.0,98678.0,0.02015501]
[1733436761245,0.50748447,98711.0,98679.0,0.0010131]
[1733436761629,0.50748447,98711.0,98680.0,0.202675]
[1733436761849,0.50748447,98711.0,98681.0,0.0010131]
[1733436762892,0.50748447,98711.0,98682.0,0.0010131]
[1733436763853,0.50748447,98711.0,98683.0,0.0010131]
[1733436764989,0.50748447,98711.0,98684.0,0.0010131]
[1733436766122,0.50748447,98711.0,98685.0,0.0010131]
[1733436766879,0.50748447,98711.0,98686.0,0.0010131]
[1733436768129,0.50748447,98711.0,98687.0,0.0010131]
[1733436768336,0.50748447,98711.0,98679.0,0.0010131]
[1733436769733,0.50748447,98711.0,98647.0,0.0805]
[1733436769734,0.15,98678.0,98647.0,0.0805]
[1733436769940,0.202712,98662.0,98651.0,0.202733]
[1733436770144,0.202712,98662.0,98652.0,0.00101347]
[1733436771157,0.20278918,98662.0,98653.0,0.00101347]
[1733436771417,7.718e-05,98662.0,98651.0,0.00101341]
[1733436771636,7.718e-05,98662.0,98661.0,0.00101339]
[1733436771853,7.718e-05,98662.0,98661.0,0.02147326]
[1733436772053,7.718e-05,98662.0,98661.0,0.19804931]
[1733436772263,0.202671,98683.0,98669.0,0.202696]
[1733436772475,0.202671,98683.0,98670.0,0.00101328]
[1733436773018,0.202663,98686.0,98671.0,0.202693]
[1733436773221,0.15,98689.0,98672.0,0.0619237]
[1733436773618,0.20267,98683.0,98672.0,0.00101327]
[1733436773826,0.15,98689.0,98662.0,0.202712]
[1733436773827,0.202685,98675.0,98662.0,0.202712]
[1733436774054,0.202685,98675.0,98663.0,0.09967605]
[1733436774251,0.15,98689.0,98663.0,0.09967605]
[1733436774252,0.202684,98676.0,98664.0,0.202708]
[1733436774502,0.202677,98680.0,98664.0,0.202708]
[1733436774717,0.202684,98676.0,98665.0,0.00101333]
[1733436776034,0.202698,98669.0,98661.0,0.00058727]
[1733436776239,0.009,98675.0,98661.0,0.00058727]
[1733436776447,0.2027,98668.0,98661.0,0.00160065]
[1733436776662,0.2027,98668.0,98661.0,0.00058727]
[1733436777107,0.20271,98663.0,98661.0,0.00058727]
[1733436777567,0.20271,98664.0,98661.0,0.00058727]
[1733436778440,0.009,98668.0,98661.0,0.00160073]
[1733436778688,0.009,98668.0,98662.0,0.00101336]
[1733436778892,0.013,98668.0,98662.0,0.00101336]
[1733436779306,0.009,98663.0,98662.0,0.00101336]
[1733436779510,0.202694,98671.0,98661.0,0.20330027]
[1733436779710,0.003,98668.0,98661.0,0.20330027]
[1733436780018,0.011,98668.0,98661.0,0.20330027]
[1733436780215,0.202694,98671.0,98661.0,0.20330027]
[1733436780467,0.006,98663.0,98661.0,0.20330027]
[1733436781393,0.006,98663.0,98661.0,0.00058727]
[1733436781602,0.27134625,98662.0,98661.0,0.00058727]
[1733436782409,0.43266642,98662.0,98661.0,0.00058727]
[1733436782644,0.91171171,98662.0,98661.0,0.00058727]
[1733436782828,0.89004151,98662.0,98661.0,0.00058727]
[1733436783031,0.89504151,98662.0,98661.0,0.00058727]
[1733436783235,0.90404151,98662.0,98661.0,0.00058727]
[1733436783460,0.89904151,98662.0,98661.0,0.00058727]
[1733436783647,0.98796073,98662.0,98661.0,0.00058727]
[1733436783865,0.89904151,98662.0,98661.0,0.00058727]
[1733436784085,0.45104151,98662.0,98661.0,0.00058727]
[1733436784317,0.35892134,98662.0,98661.0,0.00058727]
[1733436784498,0.18104529,98662.0,98661.0,0.00058727]
[1733436784716,0.19712017,98662.0,98661.0,0.00058727]
[1733436785329,0.18812017,98662.0,98661.0,0.00058727]
[1733436785534,0.19712017,98662.0,98661.0,0.00058727]
[1733436785671,0.20212017,98662.0,98661.0,0.00058727]
[1733436785882,0.53931544,98662.0,98661.0,0.00058727]
[1733436786110,0.71044538,98662.0,98661.0,0.00058727]
[1733436786734,0.70544538,98662.0,98661.0,0.00058727]
[1733436786967,0.69644538,98662.0,98661.0,0.00058727]
[1733436787194,0.70544538,98662.0,98661.0,0.00058727]
[1733436788230,0.71344538,98662.0,98661.0,0.00058727]
[1733436788450,0.8113646,98662.0,98661.0,0.00058727]
[1733436788678,0.7943646,98662.0,98661.0,0.00058727]
[1733436788887,0.8113646,98662.0,98661.0,0.00058727]
[1733436789342,0.8023646,98662.0,98661.0,0.00058727]
[1733436789585,0.8033646,98662.0,98661.0,0.00058727]
[1733436789796,0.7943646,98662.0,98661.0,0.00058727]
[1733436790006,0.8033646,98662.0,98661.0,0.00058727]
[1733436790215,0.8123646,98662.0,98661.0,0.00058727]
[1733436790444,0.41704538,98662.0,98661.0,0.00058727]
[1733436790912,0.44004538,98662.0,98661.0,0.00058727]
[1733436791122,0.43104538,98662.0,98661.0,0.00058727]
[1733436791355,4.95304538,98662.0,98661.0,0.00058727]
[1733436791556,4.95304538,98662.0,98660.0,0.0008673]
[1733436791557,0.202784,98627.0,98622.0,0.07992087]
[1733436791993,0.202777,98631.0,98622.0,0.07992087]
[1733436792651,0.20336422,98631.0,98622.0,0.07992087]
[1733436792867,0.004,98627.0,98622.0,0.07992087]
[1733436793327,0.005,98627.0,98622.0,0.07992087]
[1733436793565,0.001,98627.0,98622.0,0.07992087]
[1733436793769,0.001,98627.0,98623.0,0.55389928]
[1733436793974,0.001,98627.0,98625.0,0.202788]
[1733436794186,0.001,98627.0,98626.0,0.00101375]
[1733436794838,0.00058722,98631.0,98626.0,0.00101375]
[1733436795048,0.00658722,98631.0,98627.0,0.202784]
[1733436795257,0.00658722,98631.0,98626.0,0.00101375]
[1733436795258,0.001,98627.0,98626.0,0.0475]
[1733436795461,0.001,98627.0,98626.0,0.34996205]
[1733436795658,0.004,98627.0,98626.0,0.34996205]
[1733436796286,0.00158722,98631.0,98630.0,0.202778]
[1733436796496,0.00158722,98631.0,98630.0,0.30245405]
[1733436796897,0.00158722,98631.0,98630.0,0.51848648]
[1733436797116,0.7916012,98669.0,98631.0,0.06187983]
[1733436797117,0.03812017,98666.0,98631.0,0.06187983]
[1733436797320,0.202735,98651.0,98633.0,0.202771]
[1733436797569,0.202735,98651.0,98637.0,0.202762]
[1733436798194,0.202736,98650.0,98637.0,0.202762]
[1733436798391,0.405473,98650.0,98637.0,0.202762]
[1733436798741,0.202736,98650.0,98637.0,0.202762]
[1733436799147,0.202736,98650.0,98638.0,0.00101365]
[1733436799361,0.202736,98650.0,98639.0,0.202759]
[1733436799562,0.014,98650.0,98640.0,0.00101364]
[1733436799737,0.014,98650.0,98645.0,0.202746]
[1733436800212,0.005,98650.0,98645.0,0.202746]
[1733436800432,0.005,98650.0,98641.0,0.202755]
[1733436800650,0.014,98650.0,98644.0,0.202747]
[1733436800859,0.014,98650.0,98642.0,0.202753]
[1733436800992,0.009,98650.0,98648.0,0.20274]
[1733436801189,0.009,98650.0,98649.0,0.00101351]
[1733436801390,0.009,98650.0,98649.0,0.10068956]
[1733436801391,0.014,98650.0,98649.0,0.10068956]
[1733436801613,0.014,98650.0,98649.0,0.18028956]
[1733436801809,0.02146421,98672.0,98665.0,0.202704]
[1733436802146,0.02146421,98672.0,98668.0,0.202698]
[1733436802345,0.02146421,98672.0,98669.0,0.00101332]
[1733436802546,0.02146421,98672.0,98669.0,0.10068937]
[1733436802779,0.02146421,98672.0,98669.0,0.18028937]
[1733436803205,0.02146421,98672.0,98669.0,0.18046481]
[1733436803206,0.0107338,98670.0,98669.0,0.18046481]
[1733436803827,0.0197338,98670.0,98669.0,0.17546481]
[1733436804397,0.0107338,98670.0,98669.0,0.17546481]
[1733436804601,0.0107338,98670.0,98669.0,0.17597211]
[1733436805001,0.0017338,98670.0,98669.0,0.17597211]
[1733436805164,0.0057338,98670.0,98669.0,0.17597211]
[1733436806506,0.0057338,98670.0,98669.0,0.00017544]
[1733436807399,0.0489913,98670.0,98669.0,0.00017544]
[1733436807634,0.0057338,98670.0,98669.0,0.00017544]
[1733436808017,0.0077338,98670.0,98669.0,0.20337987]
[1733436808230,0.0037338,98670.0,98669.0,0.20287244]
[1733436808435,0.0077338,98670.0,98669.0,0.20287244]
[1733436808843,0.0047338,98670.0,98669.0,0.20287244]
[1733436809074,0.0107338,98670.0,98669.0,0.34310623]
[1733436809279,0.0077338,98670.0,98669.0,0.34310623]
[1733436810479,0.0097338,98670.0,98669.0,0.34310623]
[1733436810689,0.0097338,98670.0,98669.0,0.30254849]
[1733436814353,0.0097338,98670.0,98669.0,0.32285395]
[1733436826292,0.0097338,98670.0,98669.0,0.49043378]
[1733436826502,8e-07,98670.0,98669.0,0.49043378]
[1733436826933,0.03812017,98711.0,98676.0,0.06187983]
[1733436827138,0.03812017,98711.0,98695.0,0.202643]
[1733436827339,0.0769,98716.0,98695.0,0.202643]
[1733436827340,0.03812017,98713.0,98699.0,0.202634]
[1733436827551,0.202604,98715.0,98699.0,0.202634]
[1733436827552,0.03812017,98711.0,98699.0,0.202634]
[1733436828251,0.0769,98716.0,98713.0,0.202607]
[1733436828635,0.03812017,98720.0,98713.0,0.00017544]
[1733436828840,0.0794,98726.0,98713.0,0.00017544]
[1733436829112,0.02075234,98733.0,98721.0,0.20259]
[1733436829319,0.02075234,98733.0,98713.0,0.00017544]
[1733436829320,0.0495,98735.0,98725.0,0.20258]
[1733436829737,0.0794,98736.0,98725.0,0.20258]
[1733436830426,0.0794,98736.0,98723.0,0.202587]
[1733436830427,0.03812017,98731.0,98723.0,0.202587]
[1733436830848,0.0794,98736.0,98723.0,0.202587]
[1733436830849,0.009,98726.0,98723.0,0.202587]
[1733436831055,0.009,98726.0,98725.0,0.202582]
[1733436831516,0.03812017,98731.0,98724.0,0.01431386]
[1733436831911,0.05212017,98731.0,98724.0,0.01431386]
[1733436832349,0.009,98726.0,98725.0,0.001]
[1733436832571,0.013,98726.0,98725.0,0.001]
[1733436832788,0.004,98726.0,98723.0,0.202585]
[1733436833442,0.004,98726.0,98719.0,0.202593]
[1733436833868,0.0017312,98730.0,98719.0,0.202593]
[1733436834110,0.0017312,98730.0,98724.0,0.001]
[1733436834331,0.0017312,98730.0,98719.0,0.202593]
[1733436834806,0.03812017,98720.0,98719.0,0.001]
[1733436835003,0.36591926,98714.0,98688.0,0.202658]
[1733436835956,0.56852426,98714.0,98688.0,0.202658]
[1733436836393,0.71380031,98714.0,98678.0,0.0308545]
[1733436837810,0.72280031,98714.0,98678.0,0.0308545]
[1733436838042,0.73180031,98714.0,98678.0,0.0308545]
[1733436838717,0.73180031,98714.0,98680.0,0.202673]
[1733436839144,0.71380031,98714.0,98680.0,0.202673]
[1733436840292,0.72280031,98714.0,98680.0,0.202673]
[1733436840957,0.82071953,98714.0,98678.0,0.0308545]
[1733436841190,0.73180031,98714.0,98681.0,0.00050677]
[1733436841420,0.72280031,98714.0,98681.0,0.00050677]
[1733436841643,0.72280031,98714.0,98684.0,0.202666]
[1733436841644,0.73080031,98714.0,98684.0,0.202666]
[1733436841870,0.73080031,98714.0,98692.0,0.20265]
[1733436841871,0.72180031,98714.0,98692.0,0.20265]
[1733436842323,0.72280031,98714.0,98688.0,0.202657]
[1733436842561,0.72280031,98714.0,98689.0,0.00050673]
[1733436842807,0.47752517,98714.0,98692.0,0.202649]
[1733436843054,0.47752517,98714.0,98678.0,0.0308545]
[1733436843055,0.009,98714.0,98704.0,0.202625]
[1733436843298,0.009,98714.0,98712.0,0.202608]
[1733436843521,0.017,98714.0,98713.0,0.04071538]
[1733436843976,0.017,98714.0,98713.0,0.00017544]
[1733436843977,0.009,98714.0,98713.0,0.00017544]
[1733436844432,0.017,98714.0,98713.0,0.00017544]
[1733436844892,0.15,98722.0,98713.0,0.00017544]
[1733436845145,0.011,98714.0,98713.0,0.00017544]
[1733436845603,0.002,98714.0,98713.0,0.00017544]
[1733436845829,0.009,98714.0,98713.0,0.00017544]
[1733436846696,0.202603,98716.0,98713.0,0.00017544]
[1733436846901,0.011,98714.0,98713.0,0.00017544]
[1733436847311,0.011,98714.0,98713.0,0.02045448]
[1733436847760,0.011,98714.0,98713.0,0.00017544]
[1733436848182,0.202604,98715.0,98713.0,0.00017544]
[1733436848391,0.004,98714.0,98713.0,0.00017544]
[1733436849039,0.013,98714.0,98713.0,0.00017544]
[1733436849666,0.009,98714.0,98713.0,0.00017544]
[1733436850132,5.27609914,98714.0,98713.0,4.4e-07]
[1733436850439,0.77583293,98714.0,98713.0,4.4e-07]
[1733436850467,0.80692186,98714.0,98713.0,4.4e-07]
[1733436850669,0.81092186,98714.0,98713.0,4.4e-07]
[1733436850895,0.03812017,98683.0,98670.0,0.0008656]
[1733436851351,0.202684,98676.0,98670.0,0.0008656]
[1733436852607,0.202679,98678.0,98670.0,0.0008656]
[1733436852767,0.007,98676.0,98670.0,0.0008656]
[1733436853196,0.202685,98675.0,98670.0,0.0008656]
[1733436853773,0.205679,98678.0,98670.0,0.0008656]
[1733436854022,0.213679,98678.0,98670.0,0.0008656]
[1733436854223,0.210679,98678.0,98670.0,0.0008656]
[1733436854754,0.002,98675.0,98670.0,0.0008656]
[1733436855642,0.008,98675.0,98671.0,0.202693]
[1733436855864,0.006,98675.0,98671.0,0.202693]
[1733436856078,0.006,98675.0,98673.0,0.202689]
[1733436857011,0.003,98678.0,98673.0,0.405378]
[1733436857219,0.006,98675.0,98673.0,0.405378]
[1733436857636,0.008,98675.0,98670.0,0.2035596]
[1733436857847,0.008,98675.0,98670.0,0.0008656]
[1733436858507,0.002,98675.0,98670.0,0.0008656]
[1733436858720,0.008,98675.0,98670.0,0.2035606]
[1733436858951,0.008,98675.0,98670.0,0.06176266]
[1733436858952,0.006,98675.0,98670.0,0.06176266]
[1733436859152,0.15,98682.0,98670.0,0.0008656]
[1733436859420,0.006,98675.0,98672.0,0.202691]
[1733436859626,0.006,98675.0,98670.0,0.0008656]
[1733436860062,0.003,98678.0,98670.0,0.0008656]
[1733436860297,0.202681,98677.0,98670.0,0.0008656]
[1733436860742,0.202689,98673.0,98670.0,0.0008656]
[1733436861174,0.49081226,98671.0,98670.0,0.0008656]
[1733436861388,4.68748831,98671.0,98670.0,0.0008656]
[1733436861609,2.92740753,98671.0,98670.0,0.0008656]
[1733436862034,2.37740753,98671.0,98670.0,0.0008656]
[1733436862717,2.38640753,98671.0,98670.0,0.0008656]
[1733436862941,2.37740753,98671.0,98670.0,0.0008656]
[1733436863187,2.38640753,98671.0,98670.0,0.0008656]
[1733436863832,2.39540753,98671.0,98670.0,0.0008656]
[1733436864266,2.41567051,98671.0,98670.0,0.0008656]
[1733436864514,2.41567051,98671.0,98660.0,0.0008656]
[1733436864515,0.63483326,98661.0,98660.0,6e-07]
[1733436864727,0.63483326,98661.0,98660.0,7.778e-05]
[1733436864728,1.92298461,98661.0,98660.0,7.778e-05]
[1733436864954,1.92298461,98661.0,98660.0,7.8e-07]
[1733436865836,1.93198461,98661.0,98660.0,7.8e-07]
[1733436866495,1.92298461,98661.0,98660.0,7.8e-07]
[1733436866711,2.02090383,98661.0,98660.0,7.8e-07]
[1733436866915,2.03890383,98661.0,98660.0,7.8e-07]
[1733436868006,1.91798461,98661.0,98660.0,7.8e-07]
[1733436869132,1.94098461,98661.0,98660.0,7.8e-07]
[1733436869606,0.202776,98631.0,98620.0,0.0008674]
[1733436869828,0.202772,98633.0,98620.0,0.0008674]
[1733436869829,0.202791,98624.0,98620.0,0.0008674]
[1733436871195,0.40575902,98624.0,98620.0,0.0008674]
[1733436872022,0.20296702,98624.0,98620.0,0.0008674]
[1733436872439,0.21196702,98624.0,98620.0,0.0008674]
[1733436872643,0.00017602,98624.0,98620.0,0.0008674]
[1733436873070,0.00917602,98624.0,98620.0,0.0008674]
[1733436873272,0.01217602,98624.0,98620.0,0.0008674]
[1733436873589,0.00917602,98624.0,98620.0,0.0008674]
[1733436874008,0.01217602,98624.0,98620.0,0.0008674]
[1733436874652,0.00317602,98624.0,98620.0,0.0008674]
[1733436875086,0.202792,98623.0,98620.0,0.0008674]
[1733436875291,0.01117602,98624.0,98620.0,0.0008674]
[1733436875967,0.202792,98623.0,98620.0,0.0008674]
[1733436876548,0.205792,98623.0,98620.0,0.0008674]
[1733436876761,0.003,98623.0,98620.0,0.0008674]
[1733436878170,0.011,98623.0,98620.0,0.0008674]
[1733436878903,0.202794,98622.0,98620.0,0.0008674]
[1733436880127,0.205794,98622.0,98613.0,0.1992794]
[1733436881067,0.202794,98622.0,98620.0,0.0008659]
[1733436881278,0.210794,98622.0,98620.0,0.0008659]
[1733436881485,0.202794,98622.0,98620.0,0.0008659]
[1733436881922,0.210794,98622.0,98620.0,0.0008659]
[1733436882117,0.202794,98622.0,98620.0,0.0008659]
[1733436882355,0.210794,98622.0,98620.0,0.0008659]
[1733436882574,0.213794,98622.0,98620.0,0.0008659]
[1733436883663,0.210794,98622.0,98620.0,0.0008659]
[1733436883836,0.212794,98622.0,98620.0,0.0008659]
[1733436886285,0.39093717,98611.0,98610.0,0.0008674]
[1733436886600,0.49093626,98611.0,98610.0,0.0008674]
[1733436887275,0.49093626,98611.0,98606.0,0.00109711]
[1733436887276,0.59061231,98611.0,98606.0,0.00109711]
[1733436887481,0.49094426,98607.0,98606.0,0.00109711]
[1733436887684,0.59062031,98607.0,98606.0,0.00109711]
[1733436888104,0.39094517,98607.0,98606.0,0.00109711]
[1733436889370,0.39994517,98607.0,98606.0,0.00109711]
[1733436889571,0.40594517,98607.0,98606.0,0.00109711]
[1733436890302,0.015,98607.0,98606.0,0.00109711]
[1733436890667,0.03812017,98607.0,98606.0,0.00109711]
[1733436890866,0.009,98607.0,98606.0,0.00109711]
[1733436891284,0.15,98608.0,98606.0,0.00109711]
[1733436891726,0.009,98607.0,98606.0,0.00109711]
[1733436891936,0.15,98608.0,98606.0,0.00109711]
[1733436892350,0.014,98607.0,98606.0,0.00109711]
[1733436892546,0.366825,98607.0,98606.0,0.00109711]
[1733436892810,0.361825,98607.0,98606.0,0.00109711]
[1733436894020,0.365825,98607.0,98606.0,0.00109711]
[1733436894440,0.013,98607.0,98606.0,0.00109711]
[1733436897884,0.013,98607.0,98606.0,0.00160622]
[1733436898755,0.05959613,98613.0,98607.0,0.202825]
[1733436900057,0.02547596,98613.0,98609.0,0.202821]
[1733436900275,0.03447596,98613.0,98609.0,0.405642]
[1733436900491,0.03447596,98613.0,98609.0,0.202821]
[1733436900728,0.03447596,98613.0,98606.0,0.00109711]
[1733436901439,0.03047596,98613.0,98606.0,0.00109711]
[1733436901646,0.02147596,98613.0,98606.0,0.00109711]
[1733436901847,0.02447596,98613.0,98606.0,0.20392411]
[1733436902074,0.03347596,98613.0,98606.0,0.00109711]
[1733436902295,0.06301577,98613.0,98606.0,0.00109711]
[1733436902509,0.202815,98612.0,98606.0,0.00109711]
[1733436902752,0.202825,98607.0,98606.0,0.00109711]
[1733436902968,0.34094517,98607.0,98606.0,0.00109711]
[1733436905784,0.34894517,98607.0,98606.0,0.00109711]
[1733436906206,0.35194517,98607.0,98606.0,0.00109711]
[1733436910528,0.34894517,98607.0,98606.0,0.00109711]
[1733436910940,0.35394517,98607.0,98606.0,0.00109711]
[1733436911159,0.315825,98607.0,98606.0,0.00109711]
[1733436911432,0.310825,98607.0,98606.0,0.00109711]
[1733436911625,0.34094517,98607.0,98606.0,0.00109711]
[1733436911927,0.35494517,98607.0,98606.0,0.00109711]
[1733436912128,0.34594517,98607.0,98606.0,0.00109711]
[1733436912266,0.35494517,98607.0,98606.0,0.00109711]
[1733436914479,0.35494517,98607.0,98606.0,0.00059711]
[1733436915315,0.62150863,98607.0,98606.0,0.00059711]
[1733436915502,0.74110863,98607.0,98606.0,0.00059711]
[1733436915694,2.36258393,98607.0,98606.0,0.00059711]
[1733436916030,2.43015726,98607.0,98606.0,0.00059711]
[1733436916235,3.28769561,98607.0,98606.0,0.00059711]
[1733436916487,0.39095717,98601.0,98600.0,0.03933428]
[1733436917308,0.352837,98601.0,98600.0,0.03933428]
[1733436917716,0.005,98601.0,98600.0,0.03933428]
[1733436918094,0.014,98601.0,98600.0,0.03933428]
[1733436918301,0.014,98601.0,98600.0,0.08384241]
[1733436918520,0.014,98601.0,98600.0,0.03933428]
[1733436918521,0.009,98601.0,98600.0,0.03933428]
[1733436918728,0.023,98601.0,98600.0,0.03933428]
[1733436919155,0.005,98601.0,98600.0,0.03933428]
[1733436919575,0.011,98601.0,98600.0,0.03933428]
[1733436919984,0.011,98601.0,98600.0,0.03984346]
[1733436920255,0.006,98601.0,98600.0,0.03984346]
[1733436920461,0.008,98601.0,98600.0,0.03984346]
[1733436920671,0.008,98601.0,98600.0,0.29311951]
[1733436920874,0.008,98601.0,98600.0,0.29261033]
[1733436921593,0.006,98601.0,98600.0,0.29261033]
[1733436921808,0.02147596,98613.0,98601.0,0.023]
[1733436922012,0.02147596,98613.0,98612.0,0.304715]
[1733436922231,0.02147596,98613.0,98612.0,0.40439105]
[1733436922650,0.0017324,98620.0,98619.0,0.2258]
[1733436922878,0.0017324,98620.0,98619.0,0.32547605]
[1733436924211,0.0017324,98620.0,98619.0,0.2028]
[1733436925856,0.0047324,98620.0,98619.0,0.2028]
[1733436926105,0.0017324,98620.0,98619.0,0.2028]
[1733436926540,0.0087324,98620.0,98619.0,0.2028]
[1733436927034,0.0087324,98620.0,98619.0,0.37392735]
[1733436927262,0.0127324,98620.0,98619.0,0.37392735]
[1733436927719,0.0087324,98620.0,98619.0,0.41992735]